bitfinex-derivatives/quotes_SOLF0:USTF0_20250415
["timestamp","ask_amount","ask_price","bid_price","bid_amount"]
[1744752229855,8.5260314,128.17,128.15,7.8027]
[1744752231061,8.5260314,128.17,128.16,7.8025]
[1744752232454,3.9394,128.23,128.16,8.5260314]
[1744752232659,31.36,128.28,128.2,8.5260314]
[1744752232858,8.5260314,128.25,128.23,0.05655689]
[1744752233359,8.5260314,128.25,128.24,7.7976]
[1744752233956,8.5260314,128.25,128.23,0.05655689]
[1744752234552,7.7977,128.24,128.23,0.05655689]
[1744752234955,8.5260314,128.25,128.23,0.05655689]
[1744752235260,13.23555299,128.24,128.23,0.05655689]
[1744752236056,21.03325299,128.24,128.23,0.05655689]
[1744752236261,13.23555299,128.24,128.23,0.05655689]
[1744752236760,44.57555299,128.24,128.23,0.05655689]
[1744752236955,44.57555299,128.24,128.15,31.34]
[1744752237151,21.03485299,128.22,128.18,7.801]
[1744752237557,13.23555299,128.22,128.18,7.801]
[1744752237861,0.05793526,128.21,128.19,0.05744413]
[1744752238060,0.05793526,128.21,128.19,7.85814413]
[1744752238662,0.05793526,128.21,128.19,0.05744413]
[1744752239164,0.05793526,128.21,128.2,7.8001]
[1744752240254,0.05793526,128.21,128.19,0.05744413]
[1744752240964,0.05793526,128.21,128.19,7.85784413]
[1744752244770,7.8001,128.2,128.19,0.05744413]
[1744752247970,7.8013,128.19,128.15,31.34]
[1744752248272,13.23555299,128.22,128.15,31.34]
[1744752249072,0.05949878,128.2,128.17,0.05250098]
[1744752249379,7.85989878,128.2,128.17,7.85410098]
[1744752249674,7.85989878,128.2,128.17,0.05250098]
[1744752249675,0.05949878,128.2,128.17,0.05250098]
[1744752249969,4.1477,128.26,128.17,13.28805397]
[1744752250173,48.69145299,128.27,128.19,13.23555299]
[1744752250374,48.69145299,128.27,128.19,31.3]
[1744752250572,7.7967,128.26,128.22,7.7984]
[1744752250980,0.05928122,128.25,128.23,0.05521074]
[1744752252182,0.05928122,128.25,128.23,7.85351074]
[1744752252481,0.05928122,128.25,128.23,0.05521074]
[1744752252676,0.05928122,128.25,128.24,7.7977]
[1744752252870,0.05928122,128.25,128.23,0.05521074]
[1744752253782,7.85678122,128.25,128.23,0.05521074]
[1744752254778,0.05928122,128.25,128.23,0.05521074]
[1744752255281,0.05928122,128.25,128.23,7.85341074]
[1744752255482,0.05928122,128.25,128.23,0.05521074]
[1744752257185,0.05928122,128.25,128.24,7.7977]
[1744752260783,13.29483421,128.25,128.23,0.05521074]
[1744752261182,13.29483421,128.25,128.18,8.1209]
[1744752261381,13.29483421,128.25,128.2,7.8001]
[1744752261883,0.05928122,128.25,128.19,7.8005]
[1744752262080,13.23555299,128.23,128.13,17.38665299]
[1744752262276,0.05152896,128.19,128.17,0.04964921]
[1744752262473,0.05628868,128.19,128.17,7.85149609]
[1744752263184,0.05628868,128.19,128.17,0.05009609]
[1744752263684,7.8013,128.18,128.17,0.05009609]
[1744752264186,7.8033,128.15,128.12,8.1802]
[1744752264985,7.8039,128.14,128.11,31.28]
[1744752265381,7.85702359,128.14,128.11,31.33421592]
[1744752265783,0.05312359,128.14,128.11,39.13971592]
[1744752266484,0.05312359,128.14,128.12,7.8048]
[1744752271191,0.05312359,128.14,128.11,43.19541592]
[1744752271586,7.85702359,128.14,128.11,35.38991592]
[1744752272283,7.85702359,128.14,128.11,4.10991592]
[1744752273287,7.85702359,128.14,128.11,11.91541592]
[1744752275092,0.05312359,128.14,128.11,11.91541592]
[1744752275292,0.05312359,128.14,128.11,4.10991592]
[1744752275785,0.05312359,128.14,128.11,11.91521592]
[1744752278793,7.85692359,128.14,128.11,11.91521592]
[1744752279790,0.05312359,128.14,128.11,11.91521592]
[1744752280296,0.05312359,128.14,128.12,7.8049]
[1744752281593,8.53272114,128.14,128.11,0.05421592]
[1744752281995,7.8046,128.13,128.11,0.05421592]
[1744752286498,7.8044,128.13,128.11,0.05421592]
[1744752286998,7.8049,128.13,128.11,0.05421592]
[1744752288694,7.805,128.12,128.11,0.05421592]
[1744752300608,7.805,128.12,128.06,39.1412]
[1744752300609,7.8071,128.09,128.06,7.8812]
[1744752300809,31.26,128.1,128.05,12.0656]
[1744752301015,7.8077,128.08,128.02,31.26]
[1744752301216,44.5141222,128.1,128.02,31.26]
[1744752301416,31.26,128.1,128.03,13.2541222]
[1744752301616,0.04969356,128.08,128.05,0.05057869]
[1744752301816,0.04969356,128.08,128.06,7.8086]
[1744752302010,0.04969356,128.08,128.05,0.05057869]
[1744752302511,0.04969356,128.08,128.06,7.8084]
[1744752303216,0.04969356,128.08,128.07,7.808]
[1744752303414,0.04969356,128.08,128.05,8.53725554]
[1744752303615,0.04969356,128.08,128.06,7.8081]
[1744752303813,0.04969356,128.08,128.05,8.53725554]
[1744752304716,0.04969356,128.08,128.06,7.8086]
[1744752308123,0.04969356,128.08,128.07,7.808]
[1744752312820,8.48667685,128.12,128.1,7.806]
[1744752313026,16.29187685,128.12,128.1,7.806]
[1744752313224,8.48667685,128.12,128.07,8.48667685]
[1744752313826,0.05025855,128.11,128.08,0.05445965]
[1744752314227,0.05025855,128.11,128.1,7.8062]
[1744752318736,0.05025855,128.11,128.09,7.8066]
[1744752319127,0.05025855,128.11,128.08,0.05445965]
[1744752319636,0.05025855,128.11,128.1,7.8062]
[1744752328330,8.48667685,128.14,128.12,7.805]
[1744752329038,16.29077685,128.14,128.12,7.805]
[1744752329236,16.3439074,128.14,128.12,7.862056]
[1744752330238,0.05313055,128.14,128.13,7.8044]
[1744752332440,7.85693055,128.14,128.12,7.861756]
[1744752333340,0.05313055,128.14,128.13,7.8044]
[1744752333731,39.70667685,128.19,128.12,8.54373285]
[1744752333935,39.70667685,128.19,128.16,7.8024]
[1744752333936,7.8016,128.18,128.16,7.8024]
[1744752334337,39.70667685,128.19,128.16,7.8024]
[1744752334542,47.50797685,128.19,128.16,7.8024]
[1744752334742,47.56301011,128.19,128.16,7.85627041]
[1744752334938,39.76171011,128.19,128.16,7.85627041]
[1744752335442,7.8013,128.18,128.16,7.85627041]
[1744752338644,47.56261011,128.19,128.16,7.85627041]
[1744752339145,8.48667685,128.17,128.16,0.05387041]
[1744752339543,16.28857685,128.17,128.16,0.05387041]
[1744752339745,8.48667685,128.17,128.12,7.8047]
[1744752339943,8.48667685,128.14,128.12,7.8047]
[1744752340744,8.53908242,128.14,128.12,7.85478735]
[1744752341447,16.34288242,128.14,128.12,0.05008735]
[1744752341747,8.53908242,128.14,128.12,0.05008735]
[1744752342048,16.34298242,128.14,128.12,0.05008735]
[1744752342648,16.34298242,128.14,128.12,7.85508735]
[1744752342846,16.34298242,128.14,128.12,0.05008735]
[1744752344149,8.53908242,128.14,128.12,0.05008735]
[1744752345249,16.34318242,128.14,128.12,0.05008735]
[1744752346052,8.53908242,128.14,128.01,15.6225]
[1744752346247,8.48667685,128.1,128.03,20.09814697]
[1744752346552,8.48667685,128.1,128.03,18.67017685]
[1744752347052,7.85899918,128.08,128.05,7.8657232]
[1744752347352,0.05149918,128.08,128.05,0.0568232]
[1744752347651,7.85899918,128.08,128.05,7.8657232]
[1744752347950,0.05149918,128.08,128.05,7.8657232]
[1744752348452,0.05149918,128.08,128.06,7.8085]
[1744752358555,0.05149918,128.08,128.07,7.808]
[1744752359352,0.05149918,128.08,128.07,16.29467685]
[1744752361257,31.18,128.11,128.1,7.8062]
[1744752361564,8.48667685,128.12,128.1,7.8062]
[1744752362257,8.53961133,128.12,128.1,7.85953272]
[1744752362757,8.53961133,128.12,128.11,7.8056]
[1744752363357,0.05293448,128.12,128.11,7.8056]
[1744752365865,31.18,128.14,128.13,7.8044]
[1744752367464,16.34938623,128.15,128.13,7.8044]
[1744752367665,16.34938623,128.15,128.13,7.85879669]
[1744752368963,8.54588623,128.15,128.13,7.85879669]
[1744752369571,16.34908623,128.15,128.13,7.85879669]
[1744752370571,8.54588623,128.15,128.13,7.85879669]
[1744752371167,16.34928623,128.15,128.13,7.85879669]
[1744752372074,0.05920938,128.15,128.14,7.8038]
[1744752379080,7.8014,128.18,128.13,8.54107354]
[1744752379580,16.28787685,128.19,128.16,7.8025]
[1744752380081,16.28787685,128.19,128.16,7.85606324]
[1744752384778,16.28787685,128.19,128.17,7.8018]
[1744752387383,7.8016,128.18,128.16,7.85596324]
[1744752390786,7.8016,128.18,128.16,0.05356324]
[1744752398795,7.8016,128.18,128.16,7.85596324]
[1744752403800,16.28777685,128.19,128.16,7.85596324]
[1744752406800,7.8015,128.18,128.16,7.85596324]
[1744752410704,16.28777685,128.19,128.17,7.8019]
[1744752418408,7.8011,128.19,128.17,7.8019]
[1744752418607,8.48667685,128.2,128.16,0.05356324]
[1744752419308,7.8013,128.19,128.17,7.8019]
[1744752419608,8.48667685,128.2,128.16,0.05356324]
[1744752420509,7.8013,128.19,128.16,7.85576324]
[1744752421109,7.8008,128.19,128.16,7.85576324]
[1744752421305,8.48667685,128.2,128.16,7.85576324]
[1744752421705,7.8008,128.19,128.16,7.85576324]
[1744752422410,7.8014,128.18,128.16,7.85576324]
[1744752428613,7.801,128.19,128.16,7.85576324]
[1744752431313,7.801,128.19,128.17,7.8019]
[1744752436819,7.8005,128.2,128.18,7.8013]
[1744752442426,7.8005,128.2,128.19,7.8007]
[1744752442629,47.40617685,128.21,128.16,8.54024009]
[1744752442817,47.40617685,128.21,128.19,7.8004]
[1744752443022,47.40617685,128.21,128.19,7.85725128]
[1744752444328,8.48667685,128.23,128.19,0.05685128]
[1744752445029,39.48667685,128.24,128.21,7.7991]
[1744752445428,8.48667685,128.25,128.19,0.05685128]
[1744752445623,39.48667685,128.26,128.2,8.48667685]
[1744752445829,39.48667685,128.26,128.22,0.05129655]
[1744752446134,47.28347685,128.26,128.23,7.798]
[1744752447232,47.28347685,128.26,128.22,7.84979655]
[1744752447433,47.28347685,128.26,128.22,0.05129655]
[1744752447835,47.28347685,128.26,128.23,7.7981]
[1744752448234,38.7968,128.26,128.23,7.7981]
[1744752448434,47.28347685,128.26,128.23,7.7981]
[1744752448734,38.7968,128.26,128.23,7.7981]
[1744752448931,47.28347685,128.26,128.23,7.7981]
[1744752451234,47.28347685,128.26,128.22,7.84989655]
[1744752451427,31.0,128.26,128.22,7.84989655]
[1744752451634,7.7971,128.25,128.22,7.84989655]
[1744752452936,47.28337685,128.26,128.23,7.7982]
[1744752453234,39.48667685,128.26,128.22,0.05129655]
[1744752453637,39.48667685,128.26,128.22,7.84969655]
[1744752453638,7.7975,128.25,128.22,7.84969655]
[1744752455433,39.48667685,128.26,128.22,0.05129655]
[1744752455836,7.7973,128.25,128.22,7.84989655]
[1744752458241,47.28347685,128.26,128.23,7.7982]
[1744752458439,39.48667685,128.26,128.23,7.7982]
[1744752458938,47.28347685,128.26,128.23,7.7982]
[1744752462338,7.7971,128.25,128.23,7.7982]
[1744752464939,39.48667685,128.26,128.22,7.84989655]
[1744752465441,7.7974,128.25,128.22,7.84989655]
[1744752466443,16.28337685,128.26,128.23,7.7983]
[1744752466742,7.7967,128.26,128.23,7.7983]
[1744752467743,7.7966,128.26,128.23,7.7983]
[1744752472647,7.7966,128.26,128.24,7.7976]
[1744752473448,7.7966,128.26,128.23,7.798]
[1744752473648,7.7966,128.26,128.22,0.05129655]
[1744752474049,7.7966,128.26,128.23,7.7978]
[1744752474549,7.7966,128.26,128.22,0.05129655]
[1744752474750,7.7966,128.26,128.23,7.7978]
[1744752475548,7.7971,128.25,128.23,7.7978]
[1744752476549,8.48667685,128.27,128.23,7.7978]
[1744752477047,7.7971,128.25,128.23,7.7978]
[1744752478948,7.7967,128.26,128.22,0.05129655]
[1744752479247,30.92,128.3,128.22,0.05129655]
[1744752479248,30.92,128.3,128.24,8.48667685]
[1744752479450,30.92,128.3,128.26,0.05907716]
[1744752479652,7.7949,128.29,128.26,7.85507716]
[1744752480146,39.40667685,128.3,128.26,0.05907716]
[1744752480742,47.20097685,128.3,128.27,7.7954]
[1744752482053,7.7947,128.29,128.26,7.85517716]
[1744752482954,7.7957,128.28,128.26,0.05907716]
[1744752483143,8.48667685,128.28,128.26,0.05907716]
[1744752483649,30.92,128.27,128.19,15.57157685]
[1744752483950,8.48667685,128.24,128.18,30.92]
[1744752484250,8.48667685,128.2,128.15,27.03540477]
[1744752484551,7.85768001,128.19,128.16,7.86032791]
[1744752484751,0.05648001,128.19,128.16,0.05812791]
[1744752485154,7.8014,128.18,128.16,7.86042791]
[1744752485349,8.48667685,128.18,128.16,0.05812791]
[1744752485550,39.40667685,128.18,128.16,0.05812791]
[1744752485753,7.8019,128.17,128.16,0.05812791]
[1744752486053,39.40667685,128.18,128.09,11.93747685]
[1744752486348,8.48667685,128.13,128.07,39.40667685]
[1744752486951,30.92,128.14,128.09,0.05058405]
[1744752486952,8.53707374,128.11,128.09,0.05058405]
[1744752487753,7.8065,128.1,128.09,0.05058405]
[1744752492161,7.808,128.08,128.04,7.8095]
[1744752492359,16.29467685,128.08,128.04,7.8095]
[1744752492558,16.29467685,128.08,128.05,7.8092]
[1744752493162,16.35207806,128.08,128.05,7.86006968]
[1744752493360,0.05740121,128.08,128.06,7.8084]
[1744752493560,0.05740121,128.08,128.05,8.53754653]
[1744752494558,0.05740121,128.08,128.07,7.808]
[1744752494756,8.48667685,128.12,128.07,8.48667685]
[1744752495360,8.48667685,128.12,128.1,7.8061]
[1744752495760,0.05384591,128.12,128.1,7.85681703]
[1744752496062,0.05384591,128.12,128.11,7.8056]
[1744752496663,0.05384591,128.12,128.11,16.29227685]
[1744752506273,7.8033,128.15,128.12,7.8048]
[1744752507266,7.85337446,128.15,128.12,7.8048]
[1744752510475,0.05007446,128.15,128.14,7.8038]
[1744752510674,0.05007446,128.15,128.13,0.04970237]
[1744752511075,7.85367446,128.15,128.13,0.04970237]
[1744752511375,0.05007446,128.15,128.13,0.04970237]
[1744752512176,7.8038,128.14,128.13,0.04970237]
[1744752518880,16.29047685,128.14,128.13,0.04970237]
[1744752520080,7.8057,128.11,128.09,54.39547685]
[1744752520482,39.38667685,128.14,128.09,23.49547685]
[1744752521083,7.8053,128.12,128.09,23.49547685]
[1744752521284,7.8053,128.12,128.1,0.05249216]
[1744752522378,7.8056,128.11,128.1,0.05249216]
[1744752548708,16.29187685,128.12,128.1,0.05249216]
[1744752548909,0.05739006,128.13,128.1,0.05249216]
[1744752549402,0.05739006,128.13,128.11,7.8053]
[1744752551810,7.86189006,128.13,128.11,7.8053]
[1744752569027,0.05739006,128.13,128.12,7.805]
[1744752569226,39.28667685,128.17,128.11,8.48667685]
[1744752569426,8.48667685,128.17,128.12,30.8]
[1744752569625,16.28867685,128.17,128.15,7.8029]
[1744752570223,16.34736839,128.17,128.15,7.85830689]
[1744752571530,7.86069154,128.17,128.15,7.85830689]
[1744752572732,0.05869154,128.17,128.16,7.8025]
[1744752572933,0.05869154,128.17,128.15,0.05540689]
[1744752573532,0.05869154,128.17,128.15,7.85820689]
[1744752574934,0.05869154,128.17,128.16,7.8025]
[1744752575433,0.05869154,128.17,128.16,9.8639]
[1744752577438,16.28587685,128.22,128.19,7.8002]
[1744752577738,30.8,128.23,128.18,39.26667685]
[1744752578136,38.5986,128.23,128.2,7.7996]
[1744752578438,38.5986,128.23,128.2,7.84998536]
[1744752578738,38.5986,128.23,128.21,7.7995]
[1744752580839,7.7986,128.23,128.21,7.7995]
[1744752581336,8.48667685,128.25,128.2,0.05038536]
[1744752581541,39.26667685,128.26,128.2,8.53706221]
[1744752581742,39.26667685,128.26,128.21,30.74]
[1744752582135,8.48667685,128.26,128.23,7.7982]
[1744752582342,8.48667685,128.26,128.23,7.85478493]
[1744752582636,30.74,128.29,128.23,0.05658493]
[1744752582848,7.7959,128.27,128.25,7.7968]
[1744752583047,7.7959,128.27,128.25,7.85547855]
[1744752583746,16.28227685,128.28,128.25,7.85547855]
[1744752585149,7.7959,128.27,128.25,7.85547855]
[1744752587552,8.48667685,128.26,128.21,4.2995]
[1744752587751,8.48667685,128.25,128.21,4.2995]
[1744752588049,7.7979,128.24,128.21,4.2995]
[1744752588651,7.85315036,128.24,128.21,4.34899453]
[1744752588849,7.85315036,128.24,128.21,12.14819453]
[1744752590447,0.05525036,128.24,128.21,12.14819453]
[1744752590653,0.05525036,128.24,128.21,4.34899453]
[1744752591554,0.05525036,128.24,128.22,8.48667685]
[1744752592157,0.05525036,128.24,128.23,7.7983]
[1744752608965,7.7989,128.22,128.21,0.04949453]
[1744752609172,8.48667685,128.23,128.13,12.64477685]
[1744752609471,8.48667685,128.2,128.13,12.64477685]
[1744752609666,7.8011,128.19,128.15,7.8028]
[1744752610065,0.05273599,128.18,128.16,0.05119489]
[1744752610671,7.85403599,128.18,128.16,0.05119489]
[1744752614171,7.8019,128.17,128.16,0.05119489]
[1744752617178,0.05273599,128.18,128.16,0.05119489]
[1744752617376,0.05273599,128.18,128.17,8.48667685]
[1744752618473,0.05273599,128.18,128.17,39.16667685]
[1744752618975,0.05273599,128.18,128.17,38.4819]
[1744752619175,0.05273599,128.18,128.17,46.96857685]
[1744752620570,380.5913,128.28,128.18,7.8013]
[1744752620776,380.5913,128.28,128.19,8.48667685]
[1744752620777,8.48667685,128.25,128.19,8.48667685]
[1744752621177,7.7993,128.22,128.19,8.48667685]
[1744752621677,7.85473709,128.22,128.19,16.34264032]
[1744752624079,0.05543709,128.22,128.2,7.7998]
[1744752624377,0.05543709,128.22,128.19,8.54204032]
[1744752624577,0.05543709,128.22,128.2,7.7996]
[1744752624778,0.05543709,128.22,128.19,8.54204032]
[1744752625181,0.05543709,128.22,128.21,7.7995]
[1744752639485,30.66,128.29,128.24,7.7974]
[1744752639691,39.14667685,128.29,128.23,8.48667685]
[1744752639890,39.14667685,128.29,128.23,39.14667685]
[1744752640089,7.7955,128.28,128.25,7.7968]
[1744752640689,7.7955,128.28,128.25,7.85506189]
[1744752642395,7.7959,128.27,128.25,7.85506189]
[1744752643094,7.7955,128.28,128.25,7.85506189]
[1744752643295,30.66,128.29,128.25,8.54493874]
[1744752644190,38.4551,128.29,128.26,7.796]
[1744752647303,7.7953,128.28,128.26,7.796]
[1744752652807,8.48667685,128.28,128.25,0.05826189]
[1744752653407,7.7965,128.26,128.25,0.05826189]
[1744752654102,8.48667685,128.28,128.25,0.05826189]
[1744752654906,7.796,128.27,128.25,7.85506189]
[1744752656306,30.66,128.29,128.25,7.85506189]
[1744752656609,39.14667685,128.29,128.25,0.05826189]
[1744752657110,46.94167685,128.29,128.26,7.7961]
[1744752658610,30.66,128.29,128.27,7.7958]
[1744752658805,8.48667685,128.31,128.25,8.54493874]
[1744752659303,7.7941,128.3,128.25,8.54493874]
[1744752659910,7.7941,128.3,128.27,7.7956]
[1744752661011,7.7947,128.29,128.27,7.7956]
[1744752661208,8.48667685,128.31,128.27,7.84770519]
[1744752661716,7.7941,128.3,128.27,7.84770519]
[1744752663212,7.7941,128.3,128.28,7.7952]
[1744752664314,7.7941,128.3,128.27,0.05210519]
[1744752664315,7.7941,128.3,128.27,7.84760519]
[1744752666211,16.28077685,128.3,128.27,7.84760519]
[1744752667416,7.7947,128.29,128.27,7.84760519]
[1744752667818,16.28107685,128.3,128.28,7.7952]
[1744752668020,7.7944,128.3,128.28,7.7952]
[1744752668315,8.48667685,128.31,128.28,7.7952]
[1744752668521,16.28037685,128.31,128.27,0.05210519]
[1744752668719,8.48667685,128.31,128.27,0.05210519]
[1744752669221,8.48667685,128.31,128.29,7.7941]
[1744752669421,8.48667685,128.31,128.27,0.05210519]
[1744752670023,7.7932,128.32,128.27,8.53878204]
[1744752670317,7.7932,128.32,128.29,7.7942]
[1744752670522,16.28017685,128.31,128.29,7.7942]
[1744752670724,16.28017685,128.31,128.29,0.04917251]
[1744752672325,7.794,128.3,128.29,0.04917251]
[1744752672819,16.28037685,128.31,128.29,0.04917251]
[1744752673032,561.08,128.39,128.29,8.53584936]
[1744752673320,8.48667685,128.36,128.32,0.04933733]
[1744752673916,7.7913,128.35,128.32,7.84183733]
[1744752674323,7.7913,128.35,128.32,0.04933733]
[1744752675226,7.7913,128.35,128.33,7.7922]
[1744752676527,16.27797685,128.35,128.33,7.7922]
[1744752679433,7.7913,128.35,128.33,7.7922]
[1744752679633,16.27797685,128.35,128.33,7.7922]
[1744752680430,7.7913,128.35,128.33,7.7922]
[1744752680630,16.27797685,128.35,128.33,7.7922]
[1744752680931,30.6,128.38,128.34,7.7916]
[1744752681135,560.94,128.45,128.35,0.05725184]
[1744752681324,8.48667685,128.41,128.39,0.05971606]
[1744752681524,16.27447685,128.41,128.39,0.05971606]
[1744752681831,7.7878,128.41,128.39,0.05971606]
[1744752682033,16.27447685,128.41,128.39,0.05971606]
[1744752682229,30.54,128.44,128.39,0.05971606]
[1744752682433,39.02667685,128.44,128.39,8.54639291]
[1744752682633,8.48667685,128.45,128.39,8.54639291]
[1744752682930,8.48667685,128.45,128.41,0.05772371]
[1744752683236,8.48667685,128.43,128.41,7.84452371]
[1744752684037,16.27237685,128.44,128.41,0.05772371]
[1744752686340,7.7862,128.43,128.41,0.05772371]
[1744752687035,7.7867,128.42,128.41,0.05772371]
[1744752695448,30.52,128.44,128.41,0.05772371]
[1744752695648,30.52,128.44,128.41,7.84492371]
[1744752696145,38.3061,128.44,128.41,7.84492371]
[1744752696853,7.7863,128.43,128.41,0.05772371]
[1744752698049,38.3059,128.44,128.41,7.84482371]
[1744752698449,30.52,128.44,128.41,7.84482371]
[1744752698650,7.7863,128.43,128.41,7.84482371]
[1744752698847,30.52,128.44,128.41,7.84482371]
[1744752699150,38.306,128.44,128.41,7.84482371]
[1744752699350,30.52,128.44,128.41,7.84482371]
[1744752700051,7.7862,128.43,128.41,7.84482371]
[1744752700254,30.52,128.44,128.41,0.05772371]
[1744752700550,8.48667685,128.43,128.41,0.05772371]
[1744752701050,7.7867,128.42,128.41,0.05772371]
[1744752702352,7.7888,128.39,128.35,8.48667685]
[1744752702651,8.48667685,128.4,128.36,7.7901]
[1744752702858,7.7886,128.39,128.35,8.48667685]
[1744752703253,0.05511795,128.38,128.36,7.8451783]
[1744752703958,0.05511795,128.38,128.37,7.7898]
[1744752704256,0.05511795,128.38,128.36,0.0551783]
[1744752704450,7.84431795,128.38,128.36,7.8452783]
[1744752704647,0.05511795,128.38,128.36,0.0551783]
[1744752705058,7.7898,128.37,128.36,0.0551783]
[1744752705754,39.0217948,128.38,128.32,8.48667685]
[1744752706058,7.7914,128.35,128.32,16.27907685]
[1744752706557,7.85064826,128.35,128.32,16.3316696]
[1744752706760,7.85064826,128.35,128.32,7.84499275]
[1744752707359,0.05924826,128.35,128.32,7.84499275]
[1744752707559,0.05924826,128.35,128.33,7.7921]
[1744752709963,0.05924826,128.35,128.32,0.05259275]
[1744752710563,0.05924826,128.35,128.33,7.7919]
[1744752710860,0.05924826,128.35,128.32,8.5392696]
[1744752711160,0.05924826,128.35,128.34,7.7916]
[1744752711659,0.05924826,128.35,128.33,7.7919]
[1744752712467,0.05924826,128.35,128.34,7.7916]
[1744752713061,1.35598504,128.43,128.33,15.5836]
[1744752713263,30.48,128.44,128.35,8.48667685]
[1744752713564,8.48667685,128.4,128.35,8.48667685]
[1744752713762,8.48667685,128.4,128.37,7.7892]
[1744752714162,8.53710815,128.4,128.37,0.05516297]
[1744752714462,8.53710815,128.4,128.38,7.7888]
[1744752716865,39.01710815,128.4,128.39,7.7886]
[1744752722374,30.5304313,128.4,128.39,7.7886]
[1744752722570,0.0504313,128.4,128.39,7.7886]
[1744752722776,0.0504313,128.4,128.39,16.27527685]
[1744752722972,30.48,128.43,128.42,7.7867]
[1744752723274,598.9246,128.46,128.39,8.48667685]
[1744752723468,8.48667685,128.45,128.39,8.48667685]
[1744752724276,8.48667685,128.45,128.41,0.05337615]
[1744752724778,8.48667685,128.45,128.43,7.7857]
[1744752725177,8.48667685,128.45,128.41,0.05337615]
[1744752727773,8.48667685,128.45,128.44,7.7855]
[1744752728277,8.48667685,128.45,128.43,7.7857]
[1744752728672,8.48667685,128.45,128.41,0.05337615]
[1744752730375,38.2646,128.46,128.41,0.05337615]
[1744752730574,8.48667685,128.45,128.41,0.05337615]
[1744752731185,8.48667685,128.45,128.44,7.7855]
[1744752732582,30.48,128.49,128.41,8.540053]
[1744752732782,8.48667685,128.49,128.44,8.54284617]
[1744752732984,30.48,128.5,128.46,8.48667685]
[1744752733184,30.48,128.5,128.49,7.7825]
[1744752735189,12.58867685,128.52,128.5,7.7818]
[1744752735380,43.02867685,128.52,128.5,0.05307064]
[1744752735682,30.44,128.52,128.5,0.05307064]
[1744752735987,38.92667685,128.55,128.51,8.48667685]
[1744752736182,16.26557685,128.55,128.52,0.05499123]
[1744752736486,8.48667685,128.53,128.52,0.05499123]
[1744752736684,1.9684,128.55,128.52,0.05499123]
[1744752736884,16.26677685,128.53,128.52,0.05499123]
[1744752738580,38.92667685,128.53,128.48,7.7828]
[1744752738882,30.44,128.53,128.48,7.7828]
[1744752739187,16.26797685,128.52,128.48,7.7828]
[1744752739485,0.05661812,128.51,128.49,0.04967279]
[1744752739686,7.83841812,128.51,128.49,0.04967279]
[1744752739884,8.48667685,128.5,128.49,0.04967279]
[1744752740187,38.92667685,128.5,128.45,8.48667685]
[1744752740485,38.92667685,128.5,128.45,7.7845]
[1744752740684,40.93447685,128.5,128.45,7.7845]
[1744752741085,7.7836,128.48,128.46,0.05841489]
[1744752741284,0.05049171,128.48,128.46,0.05841489]
[1744752741786,7.7837,128.47,128.46,0.05841489]
[1744752744489,0.05049171,128.48,128.46,0.05841489]
[1744752744987,7.7837,128.47,128.46,0.05841489]
[1744752745996,7.83389171,128.48,128.46,0.05841489]
[1744752746197,0.05049171,128.48,128.46,0.05841489]
[1744752746495,0.05049171,128.48,128.46,7.84241489]
[1744752748798,7.83369171,128.48,128.46,7.84241489]
[1744752749698,0.05049171,128.48,128.46,7.84241489]
[1744752750899,7.83389171,128.48,128.46,7.84241489]
[1744752751697,7.7837,128.47,128.46,0.05841489]
[1744752758403,7.83389171,128.48,128.46,0.05841489]
[1744752758608,7.83389171,128.48,128.46,7.84261489]
[1744752762619,0.05049171,128.48,128.47,7.7837]
[1744752765116,0.05049171,128.48,128.46,7.84261489]
[1744752767221,0.05049171,128.48,128.47,7.7837]
[1744752772516,30.4,128.51,128.5,7.7819]
[1744752773221,600.611,128.54,128.51,7.7808]
[1744752773522,8.48667685,128.53,128.51,7.83556431]
[1744752774318,600.66768706,128.54,128.52,7.7807]
[1744752774519,8.48667685,128.53,128.52,7.7807]
[1744752774718,8.48667685,128.53,128.51,0.05476431]
[1744752775122,8.48667685,128.53,128.51,7.83546431]
[1744752775320,8.48667685,128.53,128.51,0.05476431]
[1744752775924,8.48667685,128.53,128.51,7.83576431]
[1744752776723,8.48667685,128.53,128.52,7.7807]
[1744752778418,598.49648706,128.54,128.52,7.7807]
[1744752778619,8.48667685,128.53,128.52,7.7807]
[1744752779122,8.48667685,128.53,128.51,7.83586431]
[1744752780320,8.48667685,128.52,128.51,7.83586431]
[1744752780521,8.48667685,128.52,128.51,0.05476431]
[1744752780925,8.48667685,128.52,128.51,7.83606431]